fUSD/lending_fUSD_20241107
["ID","MTS","AMOUNT","RATE_DAILY","PERIOD"]
[341571367,1731005456535,-705.61,0.00028217,2]
[341571368,1731005456544,-1632.43,0.00028217,2]
[341571369,1731005456554,-500.0,0.00028217,2]
[341571370,1731005456563,-2335.67,0.00028217,2]
[341571371,1731005456572,-500.0,0.00028217,2]
[341571372,1731005456585,-1245.31,0.00028217,2]
[341571373,1731005456594,-500.0,0.00028217,2]
[341571374,1731005456604,-737.75,0.00028217,2]
[341571375,1731005456614,-500.0,0.00028217,2]
[341571376,1731005456623,-990.76,0.00028217,2]
[341571377,1731005456631,-1489.7,0.00028217,2]
[341571378,1731005456641,-500.0,0.00028217,2]
[341571379,1731005456650,-746.59,0.00028217,2]
[341571380,1731005456660,-500.0,0.00028217,2]
[341571381,1731005456669,-500.0,0.00028217,2]
[341571382,1731005456679,-500.0,0.00028217,2]
[341571383,1731005456688,-500.0,0.00028217,2]
[341571384,1731005456697,-500.0,0.00028217,2]
[341571385,1731005456706,-504.24330946,0.00028217,2]
[341571386,1731005456715,-2626.87,0.00028217,2]
[341571387,1731005456725,-500.0,0.00028217,2]
[341571388,1731005456734,-500.0,0.00028217,2]
[341571389,1731005456743,-500.0,0.00028217,2]
[341571390,1731005456752,-500.0,0.00028217,2]
[341571391,1731005456761,-748.79,0.00028217,2]
[341571392,1731005456771,-500.0,0.00028217,2]
[341571393,1731005456780,-551.81,0.00028217,2]
[341571394,1731005456789,-1029.44,0.00028217,2]
[341571395,1731005456799,-500.0,0.00028217,7]
[341571396,1731005456808,-500.0,0.00028217,2]
[341571397,1731005456817,-500.0,0.00028217,2]
[341571398,1731005456830,-542.38862726,0.00028217,2]
[341571399,1731005456839,-500.0,0.00028217,2]
[341571400,1731005456849,-1187.0,0.00028217,2]
[341571401,1731005456858,-500.0,0.00028217,2]
[341571402,1731005456868,-500.0,0.00028217,2]
[341571403,1731005456877,-500.0,0.00028217,2]
[341571404,1731005456887,-500.0,0.00028217,2]
[341571405,1731005456896,-589.86,0.00028217,2]
[341571406,1731005456905,-583.33,0.00028217,2]
[341571407,1731005456914,-159.99029,0.00028259,2]
[341571408,1731005456923,-807.32,0.00028271,2]
[341571409,1731005456932,-500.0,0.00028271,2]
[341571410,1731005456942,-500.0,0.00028271,2]
[341571411,1731005456951,-500.0,0.00028271,2]
[341571412,1731005456960,-500.0,0.00028271,2]
[341571413,1731005456969,-500.0,0.00028271,2]
[341571414,1731005456978,-500.0,0.00028271,2]
[341571415,1731005456987,-513.49,0.00028271,2]
[341571416,1731005456997,-500.0,0.00028271,2]
[341571417,1731005457007,-989.36,0.00028271,2]
[341571418,1731005457016,-577.64,0.00028271,2]
[341571419,1731005457026,-1408.67,0.00028271,2]
[341571420,1731005457036,-500.0,0.00028271,2]
[341571421,1731005457045,-500.0,0.00028271,2]
[341571422,1731005457054,-902.6,0.00028271,2]
[341571423,1731005457063,-500.0,0.00028271,2]
[341571424,1731005457073,-849.13,0.00028271,2]
[341571425,1731005457085,-1512.0,0.00028271,2]
[341571426,1731005457094,-738.69,0.00028271,2]
[341571427,1731005457103,-500.0,0.00028271,2]
[341571428,1731005457112,-627.41,0.00028271,2]
[341571429,1731005457121,-1057.66,0.00028271,2]
[341571430,1731005457130,-835.58,0.00028271,2]
[341571431,1731005457140,-500.0,0.00028271,2]
[341571432,1731005457149,-500.0,0.00028271,2]
[341571433,1731005457158,-543.76,0.00028271,2]
[341571434,1731005457167,-500.0,0.00028271,2]
[341571435,1731005457177,-500.0,0.00028271,2]
[341571436,1731005457187,-969.13,0.00028271,2]
[341571437,1731005457196,-542.71995432,0.00028271,2]
[341571438,1731005457204,-500.0,0.00028271,2]
[341571439,1731005457214,-500.0,0.00028271,2]
[341571440,1731005457223,-500.0,0.00028271,2]
[341571441,1731005457235,-500.0,0.00028271,2]
[341571442,1731005457244,-500.0,0.00028271,2]
[341571443,1731005457253,-500.0,0.00028271,2]
[341571444,1731005457263,-500.0,0.00028271,2]
[341571445,1731005457274,-500.0,0.00028271,2]
[341571446,1731005457283,-525.82,0.00028271,2]
[341571447,1731005457292,-1479.61,0.00028271,2]
[341571448,1731005457302,-500.0,0.00028271,2]
[341571449,1731005457313,-1345.01,0.00028271,2]
[341571450,1731005457323,-646.4,0.00028271,2]
[341571451,1731005457336,-304.26591308,0.00028271,2]
[341571452,1731005457345,-795.19,0.00028271,2]
[341571453,1731005457355,-776.96,0.00028271,2]
[341571454,1731005457364,-500.0,0.00028271,2]
[341571455,1731005457373,-500.0,0.00028271,2]
[341571456,1731005457382,-765.09,0.00028271,2]
[341571457,1731005457392,-364.61054855,0.00028271,2]
[341571458,1731005457401,-500.0,0.00028271,2]
[341571459,1731005457411,-500.0,0.00028271,2]
[341571460,1731005457420,-500.0,0.00028271,2]
[341571461,1731005457429,-187.90831169,0.00028271,2]
[341571462,1731005457438,-500.0,0.00028271,2]
[341571463,1731005457447,-854.81,0.00028271,2]
[341571464,1731005457456,-500.0,0.00028271,2]
[341571465,1731005457465,-500.0,0.00028271,2]
[341571466,1731005457475,-1181.36,0.00028271,2]
[341571467,1731005457484,-500.0,0.00028271,2]
[341571468,1731005457493,-500.0,0.00028271,2]
[341571469,1731005457503,-1335.41,0.00028271,2]
[341571470,1731005457512,-960.47,0.00028271,2]
[341571471,1731005457521,-500.0,0.00028271,2]
[341571472,1731005457530,-723.55,0.00028271,2]
[341571473,1731005457539,-552.65,0.00028271,2]
[341571474,1731005457549,-500.0,0.00028271,2]
[341571475,1731005457558,-602.46,0.00028271,2]
[341571476,1731005457567,-546.98,0.00028271,2]
[341571477,1731005457579,-500.0,0.00028271,2]
[341571478,1731005457589,-500.0,0.00028271,2]
[341571479,1731005457598,-633.17,0.00028271,2]
[341571480,1731005457607,-500.0,0.00028271,2]
[341571481,1731005457616,-500.0,0.00028271,2]
[341571482,1731005457625,-500.0,0.00028271,2]
[341571483,1731005457635,-561.42,0.00028271,2]
[341571484,1731005457644,-500.0,0.00028271,2]
[341571485,1731005457654,-500.0,0.00028271,2]
[341571486,1731005457663,-582.61,0.00028271,2]
[341571487,1731005457673,-500.0,0.00028271,2]
[341571488,1731005457682,-500.0,0.00028271,2]
[341571489,1731005457691,-500.0,0.00028271,2]
[341571490,1731005457700,-500.0,0.00028271,2]
[341571491,1731005457709,-253.53487361,0.00028271,2]
[341571492,1731005457719,-1342.39,0.00028271,2]
[341571493,1731005457728,-1224.99,0.00028271,2]
[341571494,1731005457737,-500.0,0.00028271,2]
[341571495,1731005457746,-500.0,0.00028271,2]
[341571496,1731005457755,-500.0,0.00028271,2]
[341571497,1731005457764,-599.09,0.00028271,2]
[341571498,1731005457774,-1692.83,0.00028271,2]
[341571499,1731005457783,-1495.96,0.00028271,2]
[341571500,1731005457792,-1529.4,0.00028271,2]
[341571501,1731005457802,-1142.48,0.00028271,2]
[341571502,1731005457811,-500.0,0.00028271,2]
[341571503,1731005457820,-976.75,0.00028271,2]
[341571504,1731005457831,-500.0,0.00028271,2]
[341571505,1731005457841,-500.0,0.00028271,2]
[341571506,1731005457850,-500.0,0.00028271,2]
[341571507,1731005457859,-573.95741953,0.00028271,2]
[341571508,1731005457869,-1950.6,0.00028271,2]
[341571509,1731005457879,-515.0530909,0.00028271,2]
[341571510,1731005457888,-500.0,0.00028271,2]
[341571511,1731005457897,-1391.69,0.00028271,2]
[341571512,1731005457907,-1149.56,0.00028271,2]
[341571513,1731005457916,-500.0,0.00028271,2]
[341571514,1731005457925,-469.83982133,0.00028271,2]
[341571515,1731005457934,-6299.58,0.00028271,2]
[341571516,1731005457944,-500.0,0.00028271,2]
[341571517,1731005457953,-1522.84,0.00028271,2]
[341571518,1731005457962,-500.0,0.00028271,2]
[341571519,1731005457972,-500.0,0.00028271,2]
[341571520,1731005457981,-6044.63,0.00028271,2]
[341571521,1731005457990,-500.0,0.00028271,2]
[341571522,1731005457999,-500.0,0.00028271,2]
[341571523,1731005458008,-171.89586943,0.00028271,2]
[341571524,1731005458018,-500.0,0.00028271,2]
[341571525,1731005458027,-226.33336345,0.00028271,2]
[341571526,1731005458036,-1951.93,0.00028271,2]
[341571527,1731005458046,-504.32108435,0.00028271,2]
[341571528,1731005458055,-500.0,0.00028271,2]
[341571529,1731005458065,-513.92809228,0.00028271,2]
[341571530,1731005458074,-500.0,0.00028271,2]
[341571531,1731005458086,-500.0,0.00028271,2]
[341571532,1731005458096,-1317.58,0.00028271,2]
[341571533,1731005458105,-500.0,0.00028271,2]
[341571534,1731005458115,-6452.61,0.00028271,2]
[341571535,1731005458124,-502.69471845,0.00028271,2]
[341571536,1731005458134,-1277.93,0.00028271,2]
[341571537,1731005458143,-519.89083607,0.00028271,2]
[341571538,1731005458153,-500.0,0.00028271,2]
[341571539,1731005458163,-500.0,0.00028271,2]
[341571540,1731005458173,-1909.91,0.00028271,2]
[341571541,1731005458182,-953.23,0.00028271,2]
[341571542,1731005458192,-500.0,0.00028271,2]
[341571543,1731005458201,-1221.59,0.00028271,2]
[341571544,1731005458211,-996.65,0.00028271,2]
[341571545,1731005458220,-500.0,0.00028271,2]
[341571546,1731005458231,-2370.98,0.00028271,2]
[341571547,1731005458245,-515.69840301,0.00028271,2]
[341571548,1731005458259,-500.0,0.00028271,2]
[341571549,1731005458269,-500.0,0.00028271,2]
[341571550,1731005458278,-500.0,0.00028271,2]
[341571551,1731005458289,-3972.78,0.00028271,2]
[341571552,1731005458299,-500.0,0.00028271,2]
[341571553,1731005458308,-2203.31,0.00028271,2]
[341571554,1731005458319,-266.11383973,0.00028271,2]
[341571555,1731005458332,-500.0,0.00028271,2]
[341571556,1731005458342,-1482.3,0.00028271,2]
[341571557,1731005458353,-2187.93,0.00028272,2]
[341571558,1731005458363,-1710.79,0.00028272,2]
[341571559,1731005458374,-695.3,0.00028272,2]
[341571560,1731005458383,-515.8,0.00028272,2]
[341571561,1731005458394,-2336.8,0.00028272,2]
[341571562,1731005458404,-500.43514332,0.00028273,5]
[341571563,1731005458415,-500.0,0.00028273,5]
[341571564,1731005458424,-6357.27375176,0.00028299,2]
[341571565,1731005458435,-3434.21214382,0.00028445,2]
[341571566,1731005458445,-500.0,0.00028488,2]
[341571567,1731005458455,-447571.79533053,0.00028489,4]
[341571568,1731005458466,-16877.24058109,0.00028489,4]
[341571569,1731005458476,-500.0,0.00028489,2]
[341571570,1731005458486,-500.0,0.00028489,2]
[341571571,1731005458495,-400.86735664,0.00028489,2]
[341571572,1731005458505,-500.0,0.00028489,2]
[341571573,1731005458515,-500.0,0.00028489,2]
[341571574,1731005458525,-895.79,0.00028489,2]
[341571575,1731005458534,-505.42322974,0.00028489,2]
[341571576,1731005458545,-500.0,0.00028489,2]
[341571577,1731005458555,-500.0,0.00028489,2]
[341571578,1731005458565,-500.0,0.00028489,2]
[341571579,1731005458577,-531.93648023,0.00028489,2]
[341571580,1731005458586,-500.0,0.00028489,2]
[341571581,1731005458596,-500.0,0.00028489,2]
[341571582,1731005458605,-500.0,0.00028489,2]
[341571583,1731005458615,-500.0,0.00028489,2]
[341571584,1731005458624,-901.69,0.00028489,2]
[341571585,1731005458634,-500.0,0.00028489,2]
[341571586,1731005458644,-500.0,0.00028489,2]
[341571587,1731005458654,-500.0,0.00028489,2]
[341571588,1731005458663,-500.0,0.00028489,2]
[341571589,1731005458673,-500.0,0.00028489,2]
[341571590,1731005458683,-582.37031653,0.00028489,2]
[341571591,1731005458692,-500.1,0.00028489,2]
[341571592,1731005458703,-849.45,0.00028489,2]
[341571593,1731005458713,-500.0,0.00028489,2]
[341571594,1731005458723,-637.08,0.00028489,2]
[341571595,1731005458733,-555.25,0.00028489,2]
[341571596,1731005458743,-500.0,0.00028489,2]
[341571597,1731005458753,-434.24389334,0.00028489,2]
[341571598,1731005458762,-500.0,0.00028489,2]
[341571599,1731005458772,-1062.55,0.00028489,2]
[341571600,1731005458782,-500.0,0.00028489,2]
[341571601,1731005458792,-500.0,0.00028489,2]
[341571602,1731005458802,-500.0,0.00028489,2]
[341571603,1731005458811,-500.0,0.00028489,2]
[341571604,1731005458821,-542.0,0.00028489,2]
[341571605,1731005458831,-500.0,0.00028489,2]
[341571606,1731005458841,-500.0,0.00028489,2]
[341571607,1731005458851,-595.90462301,0.00028489,2]
[341571608,1731005458860,-500.0,0.00028489,2]
[341571609,1731005458870,-743.27,0.00028489,2]
[341571610,1731005458880,-500.0,0.00028489,2]
[341571611,1731005458890,-500.0,0.00028489,2]
[341571612,1731005458900,-500.0,0.00028489,2]
[341571613,1731005458910,-500.0,0.00028489,2]
[341571614,1731005458920,-3038.13,0.00028489,2]
[341571615,1731005458930,-2506.79,0.00028489,2]
[341571616,1731005458939,-3447.39,0.00028489,2]
[341571617,1731005458949,-2120.96,0.00028489,2]
[341571618,1731005458959,-500.0,0.00028489,2]
[341571619,1731005458969,-500.0,0.00028489,2]
[341571620,1731005458978,-500.0,0.00028489,2]
[341571621,1731005458988,-1810.22,0.00028489,2]
[341571622,1731005458997,-500.0,0.00028489,2]
[341571623,1731005459007,-500.0,0.00028489,2]
[341571624,1731005459017,-4983.31,0.00028489,2]
[341571625,1731005459027,-1818.23,0.00028489,2]
[341571626,1731005459036,-544.77,0.00028489,2]
[341571627,1731005459046,-1288.89,0.00028489,2]
[341571628,1731005459056,-2681.63,0.00028489,2]
[341571629,1731005459066,-2480.34,0.00028489,2]
[341571630,1731005459077,-3296.17,0.00028489,2]
[341571631,1731005459087,-3171.77,0.00028489,2]
[341571632,1731005459098,-14188.8,0.00028489,2]
[341571633,1731005459108,-500.0,0.00028489,2]
[341571634,1731005459118,-500.0,0.00028489,2]
[341571635,1731005459128,-8246.92,0.00028489,2]
[341571636,1731005459138,-1201.84,0.00028489,2]
[341571637,1731005459147,-1147.47,0.00028489,2]
[341571638,1731005459158,-17219.73,0.00028489,2]
[341571639,1731005459168,-500.0,0.00028489,2]
[341571640,1731005459178,-1033.36,0.00028489,2]
[341571641,1731005459188,-5372.81,0.00028489,2]
[341571642,1731005459198,-1179.84,0.00028489,2]
[341571643,1731005459208,-500.0,0.0002849,2]
[341571644,1731005459218,-500.0,0.0002849,2]
[341571645,1731005459229,-918.01,0.0002849,2]
[341571646,1731005459240,-2914.41,0.0002849,2]
[341571647,1731005459250,-500.0,0.0002849,2]
[341571648,1731005459260,-500.0,0.0002849,2]
[341571649,1731005459271,-1423.94,0.0002849,2]
[341571650,1731005459281,-500.0,0.0002849,2]
[341571651,1731005459291,-500.0,0.0002849,2]
[341571652,1731005459301,-500.0,0.0002849,2]
[341571653,1731005459311,-500.0,0.0002849,2]
[341571654,1731005459324,-500.0,0.0002849,2]
[341571655,1731005459335,-747.54,0.0002849,2]
[341571656,1731005459345,-500.0,0.0002849,2]
[341571657,1731005459355,-500.0,0.0002849,2]
[341571658,1731005459365,-500.0,0.0002849,2]
[341571659,1731005459375,-500.0,0.0002849,2]
[341571660,1731005459385,-500.0,0.0002849,2]
[341571661,1731005459396,-500.0,0.0002849,2]
[341571662,1731005459405,-500.0,0.0002849,2]
[341571663,1731005459416,-607.22,0.0002849,2]
[341571664,1731005459425,-500.0,0.0002849,2]
[341571665,1731005459435,-500.0,0.0002849,2]
[341571666,1731005459445,-715.51,0.0002849,2]
[341571667,1731005459454,-500.0,0.0002849,2]
[341571668,1731005459464,-500.0,0.0002849,2]
[341571669,1731005459474,-500.0,0.0002849,2]
[341571670,1731005459483,-794.15,0.0002849,2]
[341571671,1731005459494,-500.0,0.0002849,2]
[341571672,1731005459504,-500.0,0.0002849,2]
[341571673,1731005459514,-2579.78,0.0002849,2]
[341571674,1731005459524,-509.8054564,0.0002849,2]
[341571675,1731005459534,-500.0,0.0002849,2]
[341571676,1731005459544,-500.0,0.0002849,2]
[341571677,1731005459554,-500.0,0.0002849,2]
[341571678,1731005459564,-500.0,0.0002849,2]
[341571679,1731005459574,-881.04,0.0002849,2]
[341571680,1731005459585,-333.30141,0.0002849,2]
[341571681,1731005459595,-1017.21,0.0002849,2]
[341571682,1731005459604,-500.0,0.0002849,2]
[341571683,1731005459614,-500.0,0.0002849,2]
[341571684,1731005459624,-530.62,0.0002849,2]
[341571685,1731005459634,-3696.31,0.0002849,2]
[341571686,1731005459644,-500.0,0.0002849,2]
[341571687,1731005459654,-500.0,0.0002849,2]
[341571688,1731005459665,-500.0,0.0002849,2]
[341571689,1731005459675,-1523.7,0.0002849,2]
[341571690,1731005459685,-500.0,0.0002849,2]
[341571691,1731005459695,-242.426532,0.0002849,2]
[341571692,1731005459705,-660.95,0.0002849,2]
[341571693,1731005459715,-500.0,0.0002849,2]
[341571694,1731005459725,-500.0,0.0002849,2]
[341571695,1731005459735,-1121.91,0.0002849,2]
[341571696,1731005459745,-1491.18,0.0002849,2]
[341571697,1731005459754,-500.0,0.0002849,2]
[341571698,1731005459764,-1469.01,0.0002849,2]
[341571699,1731005459774,-1423.08,0.0002849,2]
[341571700,1731005459784,-500.0,0.0002849,2]
[341571701,1731005459793,-500.0,0.0002849,2]
[341571702,1731005459804,-500.0,0.0002849,2]
[341571703,1731005459814,-510.03,0.0002849,2]
[341571704,1731005459823,-500.0,0.0002849,2]
[341571705,1731005459836,-1382.61,0.0002849,2]
[341571706,1731005459845,-500.0,0.0002849,2]
[341571707,1731005459855,-500.0,0.0002849,2]
[341571708,1731005459865,-500.0,0.0002849,2]
[341571709,1731005459875,-500.0,0.0002849,2]
[341571710,1731005459887,-1339.1,0.0002849,2]
[341571711,1731005459899,-500.0,0.0002849,2]
[341571712,1731005459909,-757.33,0.0002849,2]
[341571713,1731005459919,-564.51132444,0.0002849,2]
[341571714,1731005459929,-3516.89,0.0002849,2]
[341571715,1731005459939,-1866.4,0.0002849,2]
[341571716,1731005459949,-907.25,0.0002849,2]
[341571717,1731005459960,-500.0,0.0002849,2]
[341571718,1731005459970,-500.0,0.0002849,2]
[341571719,1731005459980,-876.12,0.0002849,2]
[341571720,1731005459990,-500.0,0.0002849,2]
[341571721,1731005460000,-500.0,0.0002849,2]
[341571722,1731005460010,-878.68849,0.0002849,2]
[341571723,1731005460020,-500.0,0.0002849,2]
[341571724,1731005460030,-1168.06,0.0002849,2]
[341571725,1731005460040,-500.0,0.0002849,2]
[341571726,1731005460050,-749.52,0.0002849,2]
[341571727,1731005460060,-563.32,0.0002849,2]
[341571728,1731005460070,-4091.82,0.0002849,2]
[341571729,1731005460084,-1114.79,0.0002849,2]
[341571730,1731005460094,-24761.87,0.0002849,2]
[341571731,1731005460104,-500.0,0.0002849,2]
[341571732,1731005460114,-500.0,0.0002849,2]
[341571733,1731005460124,-908.41,0.0002849,2]
[341571734,1731005460134,-500.0,0.0002849,2]
[341571735,1731005460144,-694.94,0.0002849,2]
[341571736,1731005460155,-500.0,0.0002849,2]
[341571737,1731005460165,-500.0,0.0002849,2]
[341571738,1731005460175,-500.0,0.0002849,2]
[341571739,1731005460185,-835.86,0.0002849,2]
[341571740,1731005460194,-500.0,0.0002849,2]
[341571741,1731005460205,-500.0,0.0002849,2]
[341571742,1731005460215,-500.0,0.0002849,2]
[341571743,1731005460225,-514.04,0.0002849,2]
[341571744,1731005460235,-1245.93,0.0002849,2]
[341571745,1731005460248,-3252.41,0.0002849,2]
[341571746,1731005460259,-579.96,0.0002849,2]
[341571747,1731005460270,-808.64,0.0002849,2]
[341571748,1731005460282,-1820.75,0.0002849,2]
[341571749,1731005460293,-500.0,0.0002849,2]
[341571750,1731005460304,-500.0,0.0002849,2]
[341571751,1731005460316,-1711.32,0.0002849,2]
[341571752,1731005460329,-1964.97,0.0002849,2]
[341571753,1731005460339,-1005.55,0.0002849,2]
[341571754,1731005460349,-2633.57,0.0002849,2]
[341571755,1731005460360,-500.0,0.0002849,2]
[341571756,1731005460370,-1110.86,0.0002849,2]
[341571757,1731005460380,-500.0,0.0002849,2]
[341571758,1731005460390,-6468.1,0.0002849,2]
[341571759,1731005460400,-500.0,0.0002849,2]
[341571760,1731005460410,-500.0,0.0002849,2]
[341571761,1731005460420,-500.0,0.0002849,2]
[341571762,1731005460430,-500.0,0.0002849,2]
[341571763,1731005460440,-526.91,0.0002849,2]
[341571764,1731005460451,-4276.72,0.0002849,2]
[341571765,1731005460461,-677.56,0.0002849,2]
[341571766,1731005460471,-500.0,0.0002849,2]
[341571767,1731005460482,-2154.23,0.0002849,2]
[341571768,1731005460491,-500.0,0.0002849,2]
[341571769,1731005460502,-500.0,0.0002849,2]
[341571770,1731005460512,-1485.0,0.0002849,2]
[341571771,1731005460522,-500.0,0.0002849,2]
[341571772,1731005460532,-520.6299077,0.0002849,2]
[341571773,1731005460542,-2336.8,0.0002849,2]
[341571774,1731005460552,-562.24,0.0002849,2]
[341571775,1731005460562,-2336.8,0.0002849,2]
[341571776,1731005460572,-500.0,0.0002849,2]
[341571777,1731005460584,-2009.69,0.0002849,2]
[341571778,1731005460594,-1026.08,0.0002849,2]
[341571779,1731005460604,-887.45,0.0002849,2]
[341571780,1731005460615,-3595.56,0.0002849,2]
[341571781,1731005460890,-1616.18,0.0002849,2]
[341571782,1731005460900,-500.0,0.0002849,2]
[341571783,1731005460910,-513.35615786,0.0002849,2]
[341571784,1731005460920,-500.0,0.0002849,2]
[341571785,1731005460929,-575.52,0.0002849,2]
[341571786,1731005460939,-1245.31,0.0002849,2]
[341571787,1731005460948,-3430.71,0.0002849,2]
[341571788,1731005460957,-508.17,0.0002849,2]
[341571789,1731005460967,-302.00319799,0.0002849,2]
[341571790,1731005460977,-500.0,0.0002849,2]
[341571791,1731005460986,-615.78470323,0.0002849,2]
[341571792,1731005460995,-927.65,0.0002849,2]
[341571793,1731005461005,-1257.88,0.0002849,2]
[341571794,1731005461014,-1206.57,0.0002849,2]
[341571795,1731005461024,-200.0,0.0002849,2]
[341571796,1731005461033,-1242.44,0.0002849,2]
[341571797,1731005461043,-9924.2,0.0002849,2]
[341571798,1731005461052,-514.48,0.0002849,2]
[341571799,1731005461061,-1994.21,0.0002849,2]
[341571800,1731005461071,-500.0,0.0002849,2]
[341571801,1731005461084,-500.0,0.0002849,2]
[341571802,1731005461098,-1946.0,0.0002849,2]
[341571803,1731005461108,-1641.91,0.0002849,2]
[341571804,1731005461118,-692.5,0.0002849,2]
[341571805,1731005461127,-500.0,0.0002849,2]
[341571806,1731005461136,-500.0,0.0002849,2]
[341571807,1731005461146,-500.0,0.0002849,2]
[341571808,1731005461156,-769.86,0.0002849,2]
[341571809,1731005461166,-500.0,0.0002849,2]
[341571810,1731005461176,-500.0,0.00028491,2]
[341571811,1731005461186,-500.0,0.00028491,2]
[341571812,1731005461195,-500.0,0.00028491,2]
[341571813,1731005461204,-500.0,0.00028491,2]
[341571814,1731005461214,-504.08516517,0.00028491,2]
[341571815,1731005461224,-512.31104028,0.00028491,2]
[341571816,1731005461237,-500.0,0.00028491,2]
[341571817,1731005461247,-500.0,0.00028491,2]
[341571818,1731005461256,-515.54305184,0.00028491,2]
[341571819,1731005461266,-500.0,0.00028491,2]
[341571820,1731005461278,-500.0,0.00028491,2]
[341571821,1731005461288,-500.0,0.00028491,2]
[341571822,1731005461298,-500.0,0.00028491,2]
[341571823,1731005461307,-501.11944685,0.00028491,2]
[341571824,1731005461318,-501.60355692,0.00028491,2]
[341571825,1731005461333,-236.11,0.00028491,2]
[341571826,1731005461343,-500.0,0.00028491,2]
[341571827,1731005461353,-500.0,0.00028491,2]
[341571828,1731005461363,-500.63035239,0.00028491,2]
[341571829,1731005461372,-501.2080457,0.00028491,2]
[341571830,1731005461382,-519.92551741,0.00028491,2]
[341571831,1731005461392,-500.0,0.00028491,2]
[341571832,1731005461401,-544.42334209,0.00028491,2]
[341571833,1731005461411,-501.0869587,0.00028491,2]
[341571834,1731005461421,-502.3194093,0.00028491,2]
[341571835,1731005461431,-519.40808042,0.00028491,2]
[341571836,1731005461441,-500.0,0.00028491,2]
[341571837,1731005461451,-508.47884027,0.00028491,2]
[341571838,1731005461461,-500.0,0.00028491,2]
[341571839,1731005461470,-506.20470625,0.00028491,2]
[341571840,1731005461480,-502.16801596,0.00028491,2]
[341571841,1731005461490,-524.04,0.00028491,2]
[341571842,1731005461499,-500.0,0.00028491,2]
[341571843,1731005461510,-500.0,0.00028491,2]
[341571844,1731005461519,-628.2,0.00028491,2]
[341571845,1731005461529,-500.99816793,0.00028491,2]
[341571846,1731005461539,-500.0,0.00028491,2]
[341571847,1731005461548,-514.06878575,0.00028491,2]
[341571848,1731005461558,-500.0,0.00028491,2]
[341571849,1731005461567,-500.0,0.00028491,2]
[341571850,1731005461577,-312.52927271,0.00028491,2]
[341571851,1731005461589,-500.0,0.00028491,2]
[341571852,1731005461598,-500.0,0.00028491,2]
[341571853,1731005461607,-682.97,0.00028491,2]
[341571854,1731005461617,-500.0,0.00028491,2]
[341571855,1731005461627,-500.0,0.00028491,2]
[341571856,1731005461636,-519.73983464,0.00028491,2]
[341571857,1731005461645,-500.0,0.00028491,2]
[341571858,1731005461655,-500.0,0.00028491,2]
[341571859,1731005461664,-500.0,0.00028491,2]
[341571860,1731005461674,-892.16,0.00028491,2]
[341571861,1731005461684,-500.0,0.00028491,2]
[341571862,1731005461694,-500.0,0.00028491,2]
[341571863,1731005461704,-514.58137798,0.00028491,2]
[341571864,1731005461714,-231.73032783,0.00028491,2]
[341571865,1731005461724,-500.0,0.00028491,2]
[341571866,1731005461734,-500.0,0.00028491,2]